bitfinex-derivatives/quotes_BTCF0:USTF0_20230702
["timestamp","ask_amount","ask_price","bid_price","bid_amount"]
[1688319295384,0.631123,30547.0,30546.0,0.04929455]
[1688319296282,0.628723,30547.0,30546.0,0.29659455]
[1688319298073,0.628723,30547.0,30546.0,0.2777451]
[1688319299277,0.71339043,30547.0,30546.0,0.2777451]
[1688319300573,0.71339043,30547.0,30546.0,0.29597479]
[1688319300885,0.71339043,30547.0,30546.0,0.29659455]
[1688319302277,0.71339043,30547.0,30546.0,0.2777451]
[1688319302477,0.46819043,30547.0,30546.0,0.2777451]
[1688319304282,0.46819043,30547.0,30546.0,0.29659455]
[1688319304978,0.46819043,30547.0,30546.0,0.29367648]
[1688319305677,0.46819043,30547.0,30546.0,0.27482703]
[1688319311483,0.46819043,30547.0,30546.0,0.29367648]
[1688319311883,0.46819043,30547.0,30546.0,0.27482703]
[1688319315489,0.46819043,30547.0,30546.0,0.29367648]
[1688319317579,0.46819043,30547.0,30546.0,0.31190617]
[1688319318096,0.46819043,30547.0,30546.0,0.29367648]
[1688319318487,0.46819043,30547.0,30546.0,0.27482703]
[1688319318688,0.46819043,30547.0,30546.0,0.29367648]
[1688319319087,0.46819043,30547.0,30546.0,0.27482703]
[1688319320782,0.46819043,30547.0,30546.0,0.29367648]
[1688319321596,0.46819043,30547.0,30546.0,0.27482703]
[1688319322382,0.56979049,30547.0,30546.0,0.27482703]
[1688319322784,0.56979049,30547.0,30546.0,0.31190617]
[1688319323192,0.56979049,30547.0,30546.0,0.29367648]
[1688319325087,0.08466743,30547.0,30546.0,0.31190617]
[1688319325287,0.557724,30548.0,30546.0,0.55800617]
[1688319325494,0.557724,30548.0,30547.0,0.87304945]
[1688319325794,0.44272024,30550.0,30547.0,0.91092014]
[1688319326006,0.44272024,30550.0,30549.0,0.2472]
[1688319326299,0.44272024,30550.0,30549.0,0.28506969]
[1688319326494,0.44272024,30550.0,30549.0,0.29034484]
[1688319326794,0.05941305,30550.0,30549.0,0.30919429]
[1688319326987,0.00049105,30550.0,30549.0,0.30919429]
[1688319328293,0.08514926,30550.0,30549.0,0.30919429]
[1688319332492,0.08514926,30550.0,30549.0,0.55679429]
[1688319332690,0.08514926,30550.0,30549.0,0.55498365]
[1688319336903,0.38330719,30552.0,30549.0,0.57794105]
[1688319337199,0.557724,30554.0,30551.0,0.8539]
[1688319337402,0.38330719,30555.0,30553.0,0.2473]
[1688319337403,0.40294319,30555.0,30553.0,0.2473]
[1688319337606,0.40294319,30555.0,30554.0,0.66451514]
[1688319337607,0.019636,30555.0,30554.0,0.66451514]
[1688319337908,0.019636,30555.0,30554.0,0.97171514]
[1688319339898,0.019636,30555.0,30554.0,0.61091514]
[1688319340220,0.10427947,30555.0,30554.0,0.97171514]
[1688319342102,0.10427947,30555.0,30554.0,0.573836]
[1688319342610,0.10427947,30555.0,30554.0,0.59206569]
[1688319345716,0.10427947,30555.0,30554.0,0.61091514]
[1688319346119,0.10427947,30555.0,30554.0,0.59268545]
[1688319346706,0.10427947,30555.0,30554.0,0.63657742]
[1688319347316,0.10427947,30555.0,30554.0,0.61834773]
[1688319347925,0.10427947,30555.0,30554.0,0.63657742]
[1688319348724,0.10427947,30555.0,30554.0,0.61834773]
[1688319349115,0.10427947,30555.0,30554.0,0.63657742]
[1688319349310,0.10427947,30555.0,30554.0,0.61834773]
[1688319350412,0.10427947,30555.0,30554.0,0.63657742]
[1688319354514,0.10427947,30555.0,30554.0,0.61834773]
[1688319354721,0.10427947,30555.0,30554.0,0.63657742]
[1688319354922,0.10427947,30555.0,30554.0,0.61834773]
[1688319355514,0.43257947,30555.0,30554.0,0.61834773]
[1688319356722,0.43257947,30555.0,30554.0,0.59949828]
[1688319357116,0.43257947,30555.0,30554.0,0.61834773]
[1688319358524,0.43257947,30555.0,30554.0,0.63657742]
[1688319359328,0.43257947,30555.0,30554.0,0.61834773]
[1688319359526,0.43257947,30555.0,30554.0,0.63657742]
[1688319360233,0.43257947,30555.0,30554.0,0.61834773]
[1688319360727,0.43257947,30555.0,30554.0,0.63657742]
[1688319360929,0.43257947,30555.0,30554.0,0.61834773]
[1688319361429,0.43257947,30555.0,30554.0,0.63657742]
[1688319361729,0.347936,30555.0,30554.0,0.63657742]
[1688319364029,0.347936,30555.0,30554.0,0.99737742]
[1688319364838,0.3283,30555.0,30554.0,0.99737742]
[1688319367327,0.058906,30557.0,30556.0,0.2476]
[1688319367524,0.45284497,30557.0,30556.0,0.55161414]
[1688319368441,0.39393897,30557.0,30556.0,0.55161414]
[1688319369836,0.41357297,30557.0,30556.0,0.55161414]
[1688319372142,0.41357297,30557.0,30556.0,0.91241414]
[1688319374444,0.058901,30559.0,30557.0,0.03707914]
[1688319374744,0.44220819,30559.0,30558.0,0.513034]
[1688319375148,0.44220819,30559.0,30558.0,0.55011314]
[1688319375539,0.44220819,30559.0,30558.0,0.87191314]
[1688319376340,0.4430976,30560.0,30558.0,0.588634]
[1688319376341,0.45619952,30560.0,30558.0,0.588634]
[1688319376537,0.47583252,30560.0,30559.0,0.264733]
[1688319376736,0.08493879,30560.0,30559.0,0.264733]
[1688319376941,0.41059473,30560.0,30559.0,0.30181214]
[1688319377544,0.49522963,30560.0,30559.0,0.30181214]
[1688319377948,0.0846349,30560.0,30559.0,0.30181214]
[1688319378144,0.47560102,30560.0,30559.0,0.30181214]
[1688319378349,0.0846349,30560.0,30559.0,0.66261214]
[1688319378534,0.0879905,30560.0,30559.0,0.66261214]
[1688319379852,0.320432,30564.0,30560.0,0.03707914]
[1688319380043,0.058889,30565.0,30563.0,0.8516]
[1688319380246,0.577353,30566.0,30564.0,0.89522551]
[1688319380442,0.577353,30566.0,30564.0,0.34633]
[1688319380443,0.058889,30565.0,30564.0,0.34633]
[1688319380651,0.019629,30566.0,30564.0,0.84123]
[1688319380951,0.065428,30567.0,30566.0,0.019629]
[1688319381155,0.065428,30567.0,30566.0,0.266029]
[1688319381543,0.065428,30567.0,30566.0,0.30310814]
[1688319382854,0.15004891,30567.0,30566.0,0.30310814]
[1688319385646,0.15004891,30567.0,30566.0,0.28487845]
[1688319385838,0.15004891,30567.0,30566.0,0.2464]
[1688319387648,0.15362552,30567.0,30566.0,0.2464]
[1688319389546,0.25517684,30567.0,30566.0,0.2464]
[1688319389949,0.61597684,30567.0,30566.0,0.2464]
[1688319390255,1.17370084,30567.0,30566.0,0.2464]
[1688319392250,1.17370084,30567.0,30566.0,0.266029]
[1688319392446,1.42197712,30567.0,30566.0,0.266029]
[1688319393350,1.42197712,30567.0,30566.0,0.28487845]
[1688319394652,1.42197712,30567.0,30566.0,0.266029]
[1688319394849,1.42197712,30567.0,30566.0,0.26587312]
[1688319397255,1.3204258,30567.0,30566.0,0.26587312]
[1688319397452,0.7627018,30567.0,30566.0,0.26587312]
[1688319402467,0.5151018,30567.0,30566.0,0.26587312]
[1688319404557,0.61664861,30567.0,30566.0,0.26587312]
[1688319408554,0.61664861,30567.0,30566.0,0.26577754]
[1688319409460,0.61597233,30567.0,30566.0,0.26577754]
[1688319409660,0.61583371,30567.0,30566.0,0.26577754]
[1688319411673,0.61583371,30567.0,30566.0,0.28462699]
[1688319412169,0.7594869,30567.0,30566.0,0.28462699]
[1688319412376,0.7594869,30567.0,30566.0,0.26577754]
[1688319419575,0.86102938,30567.0,30566.0,0.26577754]
[1688319424378,0.86102938,30567.0,30566.0,0.26568855]
[1688319429584,0.7594869,30567.0,30566.0,0.26568855]
[1688319432577,0.7605869,30567.0,30566.0,0.26568855]
[1688319438093,0.7605869,30567.0,30566.0,0.26554077]
[1688319439688,0.5797869,30567.0,30565.0,0.3047]
[1688319439887,0.0655,30565.0,30562.0,0.00049076]
[1688319440195,0.69173,30563.0,30562.0,0.00049076]
[1688319440397,0.77635091,30563.0,30562.0,0.00049076]
[1688319440593,0.77981758,30563.0,30562.0,0.00049076]
[1688319443089,0.88136895,30563.0,30562.0,0.00049076]
[1688319446195,0.90814135,30563.0,30562.0,0.00049076]
[1688319449696,0.80658998,30563.0,30562.0,0.00049076]
[1688319450100,0.77981758,30563.0,30562.0,0.00049076]
[1688319452102,0.41901758,30563.0,30562.0,0.00049076]
[1688319452304,0.77981758,30563.0,30562.0,0.00049076]
[1688319453495,0.41901758,30563.0,30562.0,0.00033696]
[1688319453691,0.82635091,30563.0,30562.0,0.00033696]
[1688319455701,1.38407491,30563.0,30562.0,0.00033696]
[1688319464709,1.48563678,30563.0,30562.0,0.00033696]
[1688319467823,1.48563678,30563.0,30562.0,0.0002291]
[1688319469212,1.48563678,30563.0,30562.0,0.03870955]
[1688319469816,1.48563678,30563.0,30562.0,0.0198601]
[1688319470010,1.48563678,30563.0,30562.0,0.3226601]
[1688319471716,1.48563678,30563.0,30562.0,0.3030291]
[1688319472210,1.38407491,30563.0,30562.0,0.3030291]
[1688319478616,1.74487491,30563.0,30562.0,0.3030291]
[1688319479716,1.84643078,30563.0,30562.0,0.3030291]
[1688319480228,1.84643078,30563.0,30562.0,0.3029095]
[1688319486527,1.48563078,30563.0,30562.0,0.3029095]
[1688319487230,1.38407491,30563.0,30562.0,0.3029095]
[1688319487735,1.48563247,30563.0,30562.0,0.3029095]
[1688319491061,1.73273247,30563.0,30562.0,0.0001095]
[1688319491247,2.06293247,30563.0,30562.0,0.0001095]
[1688319492450,1.81713247,30563.0,30562.0,0.0001095]
[1688319495161,0.0655,30560.0,30558.0,0.319634]
[1688319495357,0.71265391,30559.0,30558.0,0.319634]
[1688319503158,0.35185391,30559.0,30558.0,0.319634]
[1688319503358,0.71265391,30559.0,30558.0,0.319634]
[1688319506969,0.71256588,30559.0,30558.0,0.319634]
[1688319507958,0.73899818,30559.0,30558.0,0.319634]
[1688319509364,0.37819818,30559.0,30558.0,0.319634]
[1688319509566,0.73899818,30559.0,30558.0,0.319634]
[1688319509758,0.84055863,30559.0,30558.0,0.319634]
[1688319511664,0.47975863,30559.0,30558.0,0.319634]
[1688319511964,0.84055863,30559.0,30558.0,0.319634]
[1688319512463,0.84127106,30559.0,30558.0,0.319634]
[1688319513955,0.84127106,30559.0,30558.0,0.3]
[1688319517260,0.73971061,30559.0,30558.0,0.3]
[1688319519771,1.10051061,30559.0,30558.0,0.3]
[1688319525671,1.10051061,30559.0,30558.0,0.29983382]
[1688319526858,1.10051061,30559.0,30555.0,0.35202585]
[1688319527074,0.6084,30556.0,30555.0,0.00049085]
[1688319527367,0.71265591,30556.0,30555.0,0.00049085]
[1688319527573,0.71336962,30556.0,30555.0,0.00049085]
[1688319532477,0.81494429,30556.0,30555.0,0.00049085]
[1688319536879,1.06254429,30556.0,30555.0,0.00049085]
[1688319538580,1.06254429,30556.0,30555.0,0.00026764]
[1688319539882,0.96096962,30556.0,30555.0,0.00026764]
[1688319542484,0.71336962,30556.0,30555.0,0.00026764]
[1688319543079,1.07416962,30556.0,30555.0,0.00026764]
[1688319545083,1.63189362,30556.0,30555.0,0.00026764]
[1688319553690,1.63174926,30556.0,30555.0,0.00026764]
[1688319554892,1.7333256,30556.0,30555.0,0.00026764]
[1688319555585,1.73261189,30556.0,30555.0,0.00026764]
[1688319557884,1.98021189,30556.0,30554.0,0.3243]
[1688319558082,0.79639725,30555.0,30554.0,0.3243]
[1688319558289,0.81603325,30555.0,30554.0,0.3243]
[1688319558782,0.0065,30554.0,30548.0,0.065468]
[1688319558999,0.6084,30549.0,30548.0,0.06595898]
[1688319559289,0.71266091,30549.0,30548.0,0.37963425]
[1688319559501,0.71266091,30549.0,30548.0,0.31416625]
[1688319559787,0.77816091,30549.0,30548.0,0.31416625]
[1688319559990,0.77816091,30549.0,30548.0,0.31968153]
[1688319561790,1.02576091,30549.0,30546.0,0.323]
[1688319561995,0.2476,30547.0,30546.0,0.323]
[1688319562198,0.35186191,30547.0,30546.0,0.323]
[1688319562392,0.267241,30547.0,30546.0,0.323]
[1688319562894,0.267241,30547.0,30546.0,0.33055336]
[1688319565893,0.824965,30547.0,30546.0,0.33055336]
[1688319566797,0.824965,30547.0,30546.0,0.35019536]
[1688319567206,0.267241,30547.0,30546.0,0.36904481]
[1688319568896,0.267241,30547.0,30546.0,0.35019536]
[1688319569898,0.35190037,30547.0,30546.0,0.35019536]
[1688319572607,0.35190037,30547.0,30546.0,0.59749536]
[1688319577411,0.267241,30547.0,30546.0,0.59749536]
[1688319578002,0.628041,30547.0,30546.0,0.59749536]
[1688319580008,0.628041,30547.0,30546.0,0.61634481]
[1688319580707,0.628041,30547.0,30546.0,0.59749536]
[1688319582607,0.628041,30547.0,30546.0,0.35019536]
[1688319584913,0.71269952,30547.0,30546.0,0.35019536]
[1688319589219,0.72321066,30547.0,30546.0,0.35019536]
[1688319592421,0.61891114,30547.0,30546.0,0.35019536]
[1688319592625,0.37131114,30547.0,30546.0,0.59639536]
[1688319592832,0.01051114,30547.0,30546.0,0.59639536]
[1688319593217,0.01051114,30547.0,30546.0,0.6334745]
[1688319594127,0.05940702,30552.0,30547.0,0.03707914]
[1688319594316,0.00049102,30552.0,30551.0,0.2472]
[1688319594516,0.00049102,30552.0,30551.0,0.26995485]
[1688319595020,0.00049102,30552.0,30551.0,0.30703399]
[1688319596126,0.02012902,30552.0,30551.0,0.30703399]
[1688319596629,0.02012902,30552.0,30551.0,0.30391714]
[1688319597128,0.26772902,30552.0,30551.0,0.30391714]
[1688319597515,0.26772902,30552.0,30551.0,0.28568745]
[1688319597716,0.26772902,30552.0,30551.0,0.60448745]
[1688319598115,0.26772902,30552.0,30551.0,0.62582221]
[1688319598526,0.35237958,30552.0,30551.0,0.62582221]
[1688319599418,0.26772902,30552.0,30551.0,0.62582221]
[1688319600018,0.35237944,30552.0,30551.0,0.62582221]
[1688319600419,0.35237944,30552.0,30551.0,0.60759252]
[1688319602735,0.35237944,30552.0,30551.0,0.62592221]
[1688319603331,0.33274144,30552.0,30551.0,0.62592221]
[1688319604235,0.35237944,30552.0,30551.0,0.62592221]
[1688319604934,0.35237944,30552.0,30551.0,0.60769252]
[1688319605229,0.35237944,30552.0,30551.0,0.62592221]
[1688319605623,0.35237944,30552.0,30551.0,0.60769252]
[1688319605931,0.35237944,30552.0,30551.0,0.60458745]
[1688319606734,0.35237944,30552.0,30551.0,0.62281714]
[1688319608432,0.35237944,30552.0,30551.0,0.60458745]
[1688319612137,0.35237944,30552.0,30551.0,0.62281714]
[1688319612528,0.35237944,30552.0,30551.0,0.62311714]
[1688319612725,0.35237944,30552.0,30551.0,0.60488745]
[1688319612938,0.35237944,30552.0,30551.0,0.62311714]
[1688319614141,0.35237944,30552.0,30551.0,0.60488745]
[1688319614639,0.35237944,30552.0,30551.0,0.62311714]
[1688319614945,0.35237944,30552.0,30551.0,0.60488745]
[1688319615242,0.26772902,30552.0,30551.0,0.60488745]
[1688319615837,0.35237912,30552.0,30551.0,0.60488745]
[1688319617042,0.35237912,30552.0,30551.0,0.62311714]
[1688319617742,0.35237912,30552.0,30551.0,0.60488745]
[1688319618446,0.35237912,30552.0,30551.0,0.62311714]
[1688319618946,0.26772902,30552.0,30551.0,0.60488745]
[1688319619654,0.24809102,30552.0,30551.0,0.60488745]
[1688319619947,0.24809102,30552.0,30551.0,0.62311714]
[1688319620137,0.00049102,30552.0,30551.0,0.62311714]
[1688319622647,0.557724,30557.0,30552.0,0.01884945]
[1688319622846,0.557724,30557.0,30556.0,0.627736]
[1688319623052,0.64235776,30557.0,30556.0,0.68213151]
[1688319623255,0.08801319,30557.0,30556.0,0.71921065]
[1688319623551,0.08859904,30557.0,30556.0,0.35841065]
[1688319623754,0.08859904,30557.0,30556.0,0.68411065]
[1688319624057,0.08859904,30557.0,30556.0,0.62971514]
[1688319624552,0.08859904,30557.0,30556.0,0.99051514]
[1688319624848,0.00337933,30557.0,30556.0,1.23751514]
[1688319625252,0.0655,30559.0,30556.0,1.23751514]
[1688319625446,0.0655,30559.0,30558.0,0.267234]
[1688319626150,0.00049089,30560.0,30558.0,0.30431314]
[1688319626448,0.00049089,30560.0,30559.0,0.66261314]
[1688319628155,0.08511729,30560.0,30559.0,0.66261314]
[1688319630056,0.00049089,30560.0,30559.0,0.66261314]
[1688319631552,0.557724,30564.0,30562.0,0.05]
[1688319631760,0.0001796,30568.0,30563.0,0.93312651]
[1688319631947,0.0001796,30568.0,30567.0,0.6078]
[1688319632251,0.0001796,30568.0,30567.0,0.627428]
[1688319632454,0.00986191,30568.0,30567.0,0.627428]
[1688319632656,0.54029719,30571.0,30567.0,0.67100714]
[1688319632852,0.54029719,30571.0,30570.0,0.626227]
[1688319633053,0.08509346,30571.0,30570.0,0.71770165]
[1688319633259,1.7446,30576.0,30570.0,0.71770165]
[1688319633464,0.621,30576.0,30575.0,0.2464]
[1688319633760,0.3131,30576.0,30575.0,0.266023]
[1688319634160,0.3131,30576.0,30575.0,0.28425269]
[1688319634646,0.332723,30576.0,30575.0,0.28425269]
[1688319634847,0.332723,30576.0,30575.0,0.266023]
[1688319636565,0.332723,30576.0,30575.0,0.28425269]
[1688319636754,0.332723,30576.0,30575.0,0.266023]
[1688319637159,0.332723,30576.0,30575.0,0.28425269]
[1688319637759,0.41732467,30576.0,30575.0,0.28425269]
[1688319638262,0.41732467,30576.0,30575.0,0.266023]
[1688319639462,0.35182467,30576.0,30575.0,0.266023]
[1688319639867,0.267223,30576.0,30575.0,0.266023]
[1688319640371,0.27726272,30576.0,30575.0,0.266023]
[1688319640574,0.27786145,30576.0,30575.0,0.266023]
[1688319640873,0.27478332,30576.0,30575.0,0.266023]
[1688319642468,0.02718332,30576.0,30575.0,0.266023]
[1688319645385,0.02718332,30576.0,30575.0,0.30310214]
[1688319646187,0.02718332,30576.0,30575.0,0.28487245]
[1688319647290,0.02718332,30576.0,30575.0,0.30310214]
[1688319647687,0.02718332,30576.0,30575.0,0.28487245]
[1688319648994,0.02718332,30576.0,30575.0,0.266023]
[1688319651092,0.27478332,30576.0,30575.0,0.2464]
[1688319652785,0.0655,30574.0,30573.0,0.2464]
[1688319652994,0.6739,30574.0,30573.0,0.24616204]
[1688319653295,0.44954836,30574.0,30572.0,0.00049058]
[1688319653483,0.44954836,30574.0,30570.0,0.2462]
[1688319653484,0.6084,30573.0,30570.0,0.2462]
[1688319653689,0.6149,30571.0,30570.0,0.2462]
[1688319653887,0.6448788,30571.0,30570.0,0.2462]
[1688319654093,0.6448788,30571.0,30570.0,0.2358472]
[1688319654601,0.0655,30568.0,30567.0,0.00049067]
[1688319654901,0.691728,30568.0,30567.0,0.00049067]
[1688319655605,0.69231618,30568.0,30567.0,0.00049067]
[1688319657403,0.69231618,30568.0,30563.0,0.2451]
[1688319657404,0.69231618,30568.0,30562.0,0.2458]
[1688319657595,0.628031,30563.0,30562.0,0.2458]
[1688319658198,0.628031,30563.0,30562.0,0.24893816]
[1688319658697,0.62861283,30563.0,30562.0,0.24893816]
[1688319659496,0.62861283,30563.0,30562.0,0.26857016]
[1688319666605,0.62861283,30563.0,30562.0,0.265432]
[1688319669805,0.62861283,30563.0,30562.0,0.26522936]
[1688319672512,0.38101283,30563.0,30562.0,0.26522936]
[1688319673111,0.38080877,30563.0,30562.0,0.26522936]
[1688319678820,0.38080877,30563.0,30559.0,0.3919878]
[1688319679025,0.6066,30560.0,30559.0,0.3330908]
[1688319679317,0.626233,30560.0,30559.0,0.0201248]
[1688319679712,0.62683605,30560.0,30559.0,0.0201248]
[1688319682325,0.62683605,30560.0,30559.0,0.0004908]
[1688319682923,0.62683605,30560.0,30559.0,0.0201248]
[1688319684917,0.69233605,30560.0,30559.0,0.0201248]
[1688319686822,0.71822212,30560.0,30559.0,0.01988732]
[1688319688229,0.71822212,30560.0,30559.0,0.00025332]
[1688319692025,1.07902212,30560.0,30559.0,0.00025332]
[1688319693228,1.45820068,30560.0,30559.0,0.00025332]
[1688319695019,0.73660068,30560.0,30559.0,0.00025332]
[1688319695223,1.45820068,30560.0,30559.0,0.00025332]
[1688319695421,1.5428378,30560.0,30559.0,0.00025332]
[1688319697222,1.5428378,30560.0,30559.0,0.01988732]
[1688319697931,1.45820068,30560.0,30559.0,0.01988732]
[1688319699528,1.45820068,30560.0,30559.0,0.00025332]
[1688319701830,1.09740068,30560.0,30559.0,0.00025332]
[1688319705439,1.18203765,30560.0,30559.0,0.00025332]
[1688319705828,1.18203765,30560.0,30559.0,0.01988732]
[1688319706243,1.15615158,30560.0,30559.0,0.01988732]
[1688319707034,1.15615158,30560.0,30559.0,0.00025332]
[1688319712533,1.15615158,30560.0,30559.0,7.235e-05]
[1688319712941,1.25771707,30560.0,30559.0,7.235e-05]
[1688319713646,1.25711402,30560.0,30559.0,7.235e-05]
[1688319716748,1.2577224,30560.0,30559.0,7.235e-05]
[1688319720642,1.15615691,30560.0,30559.0,7.235e-05]
[1688319721647,1.51695691,30560.0,30559.0,7.235e-05]
[1688319723453,1.51695691,30560.0,30556.0,0.3108]
[1688319723657,0.854,30557.0,30556.0,0.3108]
[1688319723844,0.95827197,30557.0,30556.0,0.3108]
[1688319724545,0.95887653,30557.0,30553.0,0.00049089]
[1688319724748,0.95887653,30557.0,30553.0,0.32979089]
[1688319724749,0.6083,30554.0,30553.0,0.32979089]
[1688319724949,0.71257397,30554.0,30553.0,0.32979089]
[1688319725153,0.71257397,30554.0,30553.0,0.3343616]
[1688319725656,0.71317471,30554.0,30553.0,0.3343616]
[1688319728757,0.71317471,30554.0,30553.0,0.3539986]
[1688319730051,0.71317471,30554.0,30553.0,0.3343616]
[1688319731652,0.71257397,30554.0,30553.0,0.3343616]
[1688319732347,0.71257397,30554.0,30553.0,0.3539986]
[1688319735655,0.71257397,30554.0,30553.0,0.3343616]
[1688319735858,0.71257397,30554.0,30553.0,0.3539986]
[1688319736757,0.73827195,30554.0,30553.0,0.3539986]
[1688319737547,0.73827195,30554.0,30553.0,0.35377025]
[1688319738958,0.80377195,30554.0,30553.0,0.33413325]
[1688319739152,0.80377195,30554.0,30553.0,0.32956254]
[1688319739355,0.80377195,30554.0,30553.0,0.34919954]
[1688319739555,0.80377195,30554.0,30553.0,0.35539611]
[1688319740658,0.80377195,30554.0,30553.0,0.33575911]
[1688319741461,0.80377195,30554.0,30553.0,0.35539611]
[1688319747360,0.80377195,30554.0,30553.0,0.33575911]
[1688319748958,0.80377195,30554.0,30553.0,0.00645911]
[1688319749161,0.0655,30551.0,30550.0,0.3112]
[1688319749363,0.0655,30551.0,30549.0,0.32984]
[1688319749364,0.693539,30551.0,30549.0,0.01964]
[1688319749667,0.3608,30550.0,30549.0,0.01964]
[1688319749960,0.625639,30550.0,30549.0,0.33084]
[1688319750167,0.625639,30550.0,30549.0,0.34068693]
[1688319752563,0.62635982,30550.0,30549.0,0.34068693]
[1688319762387,0.62635982,30550.0,30549.0,0.32104693]
[1688319762585,0.62635982,30550.0,30549.0,0.34068693]
[1688319762891,0.62635982,30550.0,30549.0,0.34059236]
[1688319763794,0.6527791,30550.0,30549.0,0.34059236]
[1688319764893,1.03195766,30550.0,30549.0,0.34059236]
[1688319768589,0.6527791,30550.0,30549.0,0.34059236]
[1688319775890,0.6527791,30550.0,30549.0,0.35944181]
[1688319776100,0.62635982,30550.0,30549.0,0.35944181]
[1688319776500,0.36152082,30550.0,30549.0,0.6234715]
[1688319777398,0.34392082,30550.0,30549.0,0.6234715]
[1688319777603,0.34455154,30550.0,30549.0,0.6234715]
[1688319778601,0.00063072,30550.0,30549.0,0.6234715]
[1688319780903,0.08528306,30550.0,30549.0,0.6234715]
[1688319782099,0.08528306,30550.0,30549.0,0.58639236]
[1688319782299,0.10492206,30550.0,30549.0,0.58639236]
[1688319784203,0.10492206,30550.0,30549.0,0.60524181]
[1688319788112,0.10492206,30550.0,30549.0,0.58639236]
[1688319788307,0.02026972,30550.0,30549.0,0.58639236]
[1688319790605,0.02026972,30550.0,30549.0,0.6234715]
[1688319791102,0.02026972,30550.0,30549.0,0.60524181]
[1688319793400,0.02026972,30550.0,30549.0,0.58639236]
[1688319794217,0.10492209,30550.0,30549.0,0.58639236]
[1688319795301,0.35252209,30550.0,30549.0,0.58639236]
[1688319795805,0.35012209,30550.0,30549.0,0.34059236]
[1688319797212,0.35012209,30550.0,30549.0,0.02948693]
[1688319797412,0.35012209,30550.0,30549.0,0.01964]
[1688319797612,0.26546972,30550.0,30549.0,0.01964]
[1688319798005,0.35012905,30550.0,30549.0,0.01964]
[1688319798207,0.35012905,30550.0,30549.0,0.02741804]
[1688319800915,0.71092905,30550.0,30549.0,0.02741804]
[1688319801215,0.62626972,30550.0,30549.0,0.02741804]
[1688319802818,0.71092804,30550.0,30549.0,0.02741804]
[1688319803118,0.62626972,30550.0,30549.0,0.02741804]
[1688319803617,0.62626972,30550.0,30549.0,0.00777804]
[1688319804307,0.26724,30548.0,30546.0,0.065965]
[1688319804515,0.625641,30547.0,30546.0,0.065965]
[1688319804713,0.62626831,30547.0,30546.0,0.065965]
[1688319805106,0.62626831,30547.0,30546.0,0.000491]
[1688319805307,0.69176831,30547.0,30546.0,0.000491]
[1688319805618,0.69176831,30547.0,30544.0,0.00018047]
[1688319805619,0.69826831,30547.0,30544.0,0.00018047]
[1688319805816,0.628042,30545.0,30544.0,0.00018047]
[1688319806706,0.62866678,30545.0,30544.0,0.00018047]
[1688319810122,0.62866678,30545.0,30544.0,0.01982347]
[1688319811218,0.98946678,30545.0,30544.0,0.01982347]
[1688319812818,0.9893362,30545.0,30544.0,0.01982347]
[1688319814328,0.9893362,30545.0,30544.0,0.00018047]
[1688319818228,1.0548362,30545.0,30544.0,0.01153456]
[1688319819322,1.0613362,30545.0,30544.0,0.01153456]
[1688319819824,1.1113362,30545.0,30544.0,0.01153456]
[1688319820022,0.0656,30542.0,30541.0,0.00049109]
[1688319820323,0.693645,30542.0,30541.0,0.00049109]
[1688319820827,0.69426637,30542.0,30541.0,0.02013609]
[1688319822026,1.05506637,30542.0,30541.0,0.02013609]
[1688319827639,1.054445,30542.0,30541.0,0.02013609]
[1688319827835,1.054445,30542.0,30541.0,0.01225611]
[1688319828026,1.054445,30542.0,30535.0,0.369797]
[1688319828027,0.0656,30537.0,30535.0,0.3043]
[1688319828227,0.0656,30537.0,30531.0,0.049126]
[1688319828228,0.988848,30536.0,30531.0,0.049126]
[1688319828437,0.6084,30532.0,30531.0,0.019651]
[1688319828739,0.628051,30532.0,30531.0,0.01336941]
[1688319828942,0.628051,30532.0,30530.0,0.065508]
[1688319829135,0.264851,30531.0,30530.0,0.065508]
[1688319829344,0.265852,30530.0,30529.0,0.645352]
[1688319829541,0.511852,30530.0,30529.0,0.645352]
[1688319835749,0.511852,30530.0,30529.0,0.65872232]
[1688319838349,0.4922,30530.0,30529.0,0.65872232]
[1688319838644,0.2462,30530.0,30529.0,0.69580146]
[1688319840051,0.2462,30530.0,30529.0,0.69567914]
[1688319840253,0.085251,30534.0,30529.0,0.69567914]
[1688319840444,0.085251,30534.0,30530.0,0.28347914]
[1688319840642,0.02594142,30533.0,30531.0,0.019652]
[1688319840851,0.2476,30532.0,30531.0,0.03379845]
[1688319841347,0.267251,30532.0,30531.0,0.03379845]
[1688319841652,0.267251,30532.0,30531.0,0.0526479]
[1688319844156,0.267251,30532.0,30531.0,0.03379845]
[1688319844655,0.267251,30532.0,30531.0,0.01414645]
[1688319845057,0.267251,30532.0,30530.0,0.019652]
[1688319845253,0.6066,30531.0,30529.0,0.68453368]
[1688319845455,0.514452,30530.0,30529.0,0.33633068]
[1688319846258,0.842052,30530.0,30529.0,0.33633068]
[1688319848163,0.514452,30530.0,30529.0,0.3307415]
[1688319848368,0.940852,30530.0,30529.0,0.3307415]
[1688319848959,1.269552,30530.0,30529.0,0.3503945]
[1688319849348,1.64873056,30530.0,30529.0,0.3503945]
[1688319850356,1.40153056,30530.0,30529.0,0.3503945]
[1688319850553,0.693652,30530.0,30529.0,0.3503945]
[1688319850751,0.628052,30530.0,30529.0,0.3503945]
[1688319850957,0.6084,30530.0,30529.0,0.38747364]
[1688319851353,0.2476,30530.0,30529.0,0.38747364]
[1688319851767,0.267252,30530.0,30529.0,0.38747364]
[1688319852272,0.2476,30530.0,30529.0,0.38747364]
[1688319852468,0.2476,30530.0,30529.0,0.63507364]
[1688319852968,0.44477856,30534.0,30529.0,0.63507364]
[1688319852969,0.50372656,30536.0,30529.0,0.63507364]
[1688319853169,0.00049129,30535.0,30534.0,0.266049]
[1688319853356,0.00049129,30535.0,30534.0,0.35752365]
[1688319853556,0.00049129,30535.0,30534.0,0.37271923]
[1688319857570,0.00049129,30535.0,30534.0,0.73351923]
[1688319862175,0.00049129,30535.0,30534.0,1.03848509]
[1688319862668,1.0464,30540.0,30534.0,1.00140595]
[1688319862861,0.2476,30540.0,30539.0,0.2472]
[1688319863068,0.2476,30540.0,30539.0,0.266846]
[1688319863265,0.2476,30540.0,30539.0,0.2754843]
[1688319864073,0.2476,30540.0,30539.0,0.29433375]
[1688319864477,0.267245,30540.0,30539.0,0.29433375]
[1688319865669,0.267245,30540.0,30539.0,0.31256344]
[1688319866869,0.2476,30540.0,30539.0,0.31256344]
[1688319867972,0.265445,30541.0,30539.0,0.31256344]
[1688319868175,0.265445,30541.0,30540.0,0.28437914]
[1688319868478,0.265445,30541.0,30540.0,0.31164406]
[1688319868978,0.267245,30541.0,30540.0,0.02726492]
[1688319869468,0.267245,30541.0,30540.0,0.019645]
[1688319872782,0.26799813,30541.0,30540.0,0.019645]
[1688319874574,0.35267785,30541.0,30540.0,0.019645]